Cogmind - Beta 15 @@@ ROGUE MODE // 2025.10.09 @ 20:17:00 Player: ElandEm Result: Destroyed by N2-WGW(R) with Subdweller Laser Performance ------------- Evolutions (0) 0 Regions Visited (2) 400 Robots Destroyed (12) 60 Value Destroyed (323) 323 Prototype IDs (0) 0 Alien Tech Used (0) 0 Bonus (0) 0 TOTAL SCORE: 783 Bonus ------- None Cogmind --------- Core Integrity 0/250 Matter 300/300 Energy 99/100 System Corruption 0% Temperature Cool (6) Movement Core (50) Location -10/Subcaves Parts ------- > --- POWER (1) -------- (None) > --- PROPULSION (2) --- (None) > --- UTILITY (2) ------ (None) > --- WEAPON (2) ------- (None) > --- INVENTORY (5) ---- Light Nuclear Core Large Storage Unit Medium Matter Pod (100) Targeting Computer Armor Integrity Analyzer Peak State ------------ > --- POWER ------------ Neutrino Core > --- PROPULSION ------- Aluminum Leg Myomer Leg > --- UTILITY ---------- Scrap Shield > --- WEAPON ----------- Light Assault Rifle Bore Cannon > --- INVENTORY -------- Light Nuclear Core Large Storage Unit Medium Matter Pod Targeting Computer Armor Integrity Analyzer [Rating: 25] Favorites ----------- Power Ion Engine Engine Ion Engine Power Core Neutrino Core Propulsion Aluminum Leg Leg Aluminum Leg Utility Small Storage Unit Device Sensor Array Storage Small Storage Unit Protection Scrap Shield Weapon Light Assault Rifle Energy Gun Medium Laser Ballistic Gun Light Assault Rifle Ballistic Cannon Light Cannon Build | -11 -10 -10 ------- Run | Yrd Mat Sub Slots Evolved . | . . . Power . | . . . Propulsion . | . . . Utility . | . . . Weapon . | . . . Parts Attached 20 | 7 8 5 Power 4 | 1 1 2 Engine 2 | 1 1 . Core 2 | . . 2 Reactor . | . . . Propulsion 5 | 2 2 1 Treads . | . . . Leg 5 | 2 2 1 Wheel . | . . . Hover . | . . . Flight . | . . . Utility 6 | 2 3 1 Device 2 | 1 1 . Storage 3 | 1 2 . Processor . | . . . Hackware . | . . . Protection 1 | . . 1 Artifact . | . . . Weapon 5 | 2 2 1 Energy Gun 2 | 1 1 . Energy Cannon . | . . . Ballistic Gun 1 | 1 . . Ballistic Cannon 2 | . 1 1 Launcher . | . . . Special Weapon . | . . . Impact Weapon . | . . . Slashing Weapon . | . . . Piercing Weapon . | . . . Special Melee Weapon . | . . . Unidentified Prototypes . | . . . Parts Lost 7 | . 1 6 Power 1 | . . 1 Propulsion 2 | . . 2 Utility 2 | . 1 1 Weapon 2 | . . 2 Highest Loss Streak 6 | . 1 6 To Critical Strikes . | . . . Average Backups 3 | 1 4 4 Power 1 | 1 1 . Propulsion . | . . . Utility 1 | . 1 3 Weapon . | . 1 . Tool/Special . | . . . Unused Backups 2 | . . 2 Power . | . . . Propulsion . | . . . Utility 2 | . . 2 Weapon . | . . . Tool/Special . | . . . Average Slot Usage (%) 90 | . 95 83 Engine 8 | . 13 . Core 4 | . . 12 Leg 27 | . 27 27 Device 4 | . 7 . Storage 11 | . 18 1 Protection 4 | . . 12 Energy Gun 5 | . 9 . Ballistic Gun 10 | . 9 13 Ballistic Cannon 10 | . 8 13 Peak Build Rating 25 | 7 8 25 Average Rating 9 | 5 6 19 On Entrance 5 | . 7 8 Naked Turns 3 | . . 3 Heaviest Build 42 | 14 31 42 Greatest Support 35 | 20 20 35 Greatest Overweight (x) 2 | . 1 2 Average Overweight (x) . | . . . Largest Inventory Capacity 15 | 8 15 15 Average Capacity 8 | 7 10 5 Most Carried 10 | 5 8 10 Average Carried 3 | 1 4 4 Final Capacity 15 | 8 15 5 Final Carried 8 | 1 8 5 Class Distribution -------------------- 80% | Mutant 19% | Scavenger-Mutant Dominant Class ---------------- Mutant | -10/Materials Scavenger-Mutant | -10/Subcaves Resources | -11 -10 -10 ----------- Run | Yrd Mat Sub Matter Collected 802 | 193 395 214 Remotely . | . . . Salvage Created 325 | 16 225 84 Parts 12 | 2 8 2 Haulers Intercepted . | . . . Recyclers Shooed . | . . . Parts Field Recycled . | . . . Retrieved Matter . | . . . Parts Self-Destructed 2 | . . 2 Prevented . | . . . Kills | -11 -10 -10 ------- Run | Yrd Mat Sub Combat Hostiles Destroyed 10 | . 6 4 Guns 3 | . 1 2 Cannons 7 | . 5 2 Classes Destroyed 5 | 1 2 2 Tunneler 1 | 1 . . Watcher 1 | . 1 . Swarmer 3 | . . 3 Grunt 6 | . 6 . Subdweller 1 | . . 1 Best Kill Streak 4 | 1 4 2 Combat Bots Only 4 | . 4 2 Max Kills in Single Turn 1 | 1 1 1 Gunslinging . | . . . Exploded . | . . . Melee . | . . . Uniques/NPCs Destroyed . | . . . Combat | -11 -10 -10 -------- Run | Yrd Mat Sub Hostile Shots Fired 105 | . 29 76 Missed 29 | . 9 20 Hits 76 | . 20 56 Projectile 76 | . 20 56 Critical Strikes 1 | . . 1 Damage Taken 1301 | . 273 1028 Core 262 | . 53 209 Absorbed by Shields . | . . . Core Remaining (%) 100 | 100 . . Volleys Fired 52 | 3 32 17 Largest 2 | 2 2 2 Hottest 80 | 70 80 68 Shots Fired 103 | 6 63 34 Gun 58 | 6 35 17 Cannon 45 | . 28 17 Launcher . | . . . Special . | . . . Kinetic 82 | 3 45 34 Thermal 21 | 3 18 . Explosive . | . . . Electromagnetic . | . . . Robot Hit Streak 11 | 2 11 4 Robot Miss Streak 7 | 2 7 4 Penetration Max 1 | . . 1 Secondary Targets . | . . . Shots Hit Robots 53 | 3 35 15 Core Hits 22 | 1 14 7 Critical Kills 1 | . . 1 Critical Parts Destroyed 1 | . . 1 Critical Strikes 8 | . 3 5 Burn 1 | . 1 . Destroy 4 | . . 4 Blast 3 | . 2 1 Melee Attacks . | . . . Impact . | . . . Slashing . | . . . Piercing . | . . . Sneak Attacks . | . . . Combat Hostiles . | . . . Follow-up Attacks . | . . . Damage Inflicted 752 | 33 462 257 Guns 323 | 33 211 79 Cannons 429 | . 251 178 Explosions . | . . . Melee . | . . . Ramming . | . . . Kinetic 599 | 20 322 257 Thermal 153 | 13 140 . Explosive . | . . . Electromagnetic . | . . . Impact . | . . . Slashing . | . . . Piercing . | . . . Highest Corruption . | . . . Average Corruption . | . . . Corruption Purged . | . . . Corruption Blocked . | . . . Overload Shots . | . . . Overflow Damage . | . . . Projectiles . | . . . Explosions . | . . . Melee . | . . . Knockbacks . | . . . Impact . | . . . Kinetic . | . . . Secondary . | . . . Self-Inflicted Damage . | . . . Shots . | . . . Rammed . | . . . Targets Rammed . | . . . Kicked . | . . . Crushed . | . . . Highest Temperature 324 | 70 324 . Average Temperature 91 | 34 96 . Received Heat Transfer 216 | . 147 69 Siege Activations . | . . . Martial Activations . | . . . Shielding Activations . | . . . Robots Disrupted . | . . . Combat Hostiles . | . . . Robots Corrupted . | . . . Combat Hostiles . | . . . Parts Fried . | . . . Impact Corruptions . | . . . Robots Melted . | . . . Combat Hostiles . | . . . Parts Melted . | . . . Heat Transferred 518 | 37 481 . Parts Sabotaged . | . . . Parts Stolen . | . . . Parts Stripped . | . . . Power Chain Reactions . | . . . Alert | -11 -10 -10 ------- Run | Yrd Mat Sub Maximum Alert Level . | . . . Low Security (%) 100 | 100 100 . Level 1 . | . . . Level 2 . | . . . Level 3 . | . . . Level 4 . | . . . Level 5 . | . . . High Security . | . . . Max Security . | . . . Peak Influence 70 | 5 70 . Initial . | . . . Average 12 | . 20 . Influence Increases 247 | 5 157 85 Destroy 0b10 Robot/C 180 | . 120 60 Destroy 0b10 Robot/NC 10 | 5 5 . Destroy Leader 42 | . 32 10 Lose Combat Pursuer 15 | . . 15 Influence Decreases 247 | 5 124 118 Entered New Map 17 | . . 17 Time Decay 220 | 5 114 101 Lost Part 10 | . 10 . Squads Dispatched 2 | . 2 . Investigation 1 | . 1 . Extermination . | . . . Reinforcement 1 | . 1 . Assault . | . . . Garrison . | . . . Intercept . | . . . Searches Triggered . | . . . Construction Impeded . | . . . Haulers Reinforced . | . . . Active Scanning Responses . | . . . Cargo Convoy Interrupts . | . . . Stealth | -11 -10 -10 --------- Run | Yrd Mat Sub Distress Signals . | . . . Communications Jammed . | . . . Distress Signals . | . . . Times Spotted 25 | . 10 15 Peak Tracking Total 10 | . 3 10 Tactical Retreats 1 | . . 1 Traps | -11 -10 -10 ------- Run | Yrd Mat Sub Traps Triggered 6 | . 6 . Indirectly . | . . . Trap Hack Attempts . | . . . Triggered . | . . . Disarmed . | . . . Reprogrammed . | . . . Reused . | . . . Traps Extracted . | . . . Installed . | . . . Triggered . | . . . Machines | -11 -10 -10 ---------- Run | Yrd Mat Sub Machines Disabled . | . . . Max in Single Turn . | . . . Machines Repaired . | . . . Machines Dismantled . | . . . Machines Sabotaged . | . . . Overloaded Fab Kills . | . . . Hacking | -11 -10 -10 --------- Run | Yrd Mat Sub Machines Accessed . | . . . Terminals . | . . . Fabricators . | . . . Repair Stations . | . . . Recycling Units . | . . . Scanalyzers . | . . . Garrison Access . | . . . Total Hacks . | . . . Successful . | . . . Failed . | . . . Catastrophic . | . . . Database Lockouts . | . . . Manual . | . . . Terminals . | . . . Fabricators . | . . . Repair Stations . | . . . Recycling Units . | . . . Scanalyzers . | . . . Garrison Access . | . . . Terminal Hacks . | . . . Fabricator Hacks . | . . . Repair Station Hacks . | . . . Recycling Unit Hacks . | . . . Scanalyzer . | . . . Garrison Access Hacks . | . . . Unauthorized Hacks . | . . . Terminals . | . . . Fabricators . | . . . Repair Stations . | . . . Recycling Units . | . . . Scanalyzers . | . . . Garrison Access . | . . . Data Cores Recovered . | . . . Used . | . . . Hacking Detections . | . . . Full Trace Events . | . . . Feedback Events . | . . . Feedback Blocked . | . . . Robot Schematics Acquired . | . . . Robots Built . | . . . Authchips . | . . . Time . | . . . Total Robot Build Rating . | . . . Part Schematics Acquired . | . . . Parts Built . | . . . Authchips . | . . . Time . | . . . Total Part Build Rating . | . . . Parts Repaired . | . . . Time . | . . . Parts Recycled . | . . . Recycled Matter . | . . . Retrieved Matter . | . . . Retrieved Components . | . . . Parts Scanalyzed . | . . . Part Schematics Acquired . | . . . Parts Damaged . | . . . Bothacking | -11 -10 -10 ------------ Run | Yrd Mat Sub Used RIF Installer . | . . . Robots Hacked . | . . . Non-combat . | . . . Combat . | . . . Robot Hacks Applied . | . . . Relay Couplers Released . | . . . Fabnet Peak Effective % . | . . . Robots Rewired . | . . . Allies Hacked . | . . . Hacks Repelled . | . . . Allies | -11 -10 -10 -------- Run | Yrd Mat Sub Total Allies . | . . . Largest Group . | . . . Highest-Rated Group . | . . . Highest-Rated Ally . | . . . Total Orders . | . . . Ally Attacks . | . . . Total Damage . | . . . Kills . | . . . Allies Corrupted . | . . . Allies Melted . | . . . Intel | -11 -10 -10 ------- Run | Yrd Mat Sub Active Infowar (turns) 293 | 15 278 . Sensors 231 | . 231 . Seismic 62 | 15 47 . Robot Analysis Total . | . . . Derelict Logs Recovered . | . . . Drone Launches . | . . . Drone Recoveries . | . . . Exploration | -11 -10 -10 ------------- Run | Yrd Mat Sub Turns Passed 1256 | 365 550 341 Spaces Moved 528 | 111 270 147 Core 29 | 18 7 4 Treads . | . . . Legs 499 | 93 263 143 Wheels . | . . . Hover . | . . . Flight . | . . . Fastest Speed 50 | 50 100 50 Average Speed 143 | 108 136 184 Slowest Speed 260 | 120 190 260 Overloaded Moves . | . . . Propulsion Burnouts . | . . . Robots Hopped . | . . . Potential Cave-ins . | . . . Cave-ins Triggered . | . . . Exploration Rate (%) 18 | 8 40 8 Regions Visited 2 Branch Regions 1 Pre-discovered Areas . | . . . Known Exits Taken . | . . . Unknown Exits Taken 2 | 1 1 . Scrap Searched . | . . . Spaces Dug . | . . . Terrain Destroyed 5 | . . 5 Melee . | . . . Projectile 5 | . . 5 AOE . | . . . Terrain Rammed . | . . . Walls Destroyed . | . . . Machines Disabled . | . . . Actions | -11 -10 -10 --------- Run | Yrd Mat Sub Total 925 | 349 388 188 Wait 281 | 223 58 . Move 526 | 110 269 147 Hop . | . . . Pick Up 28 | 6 13 9 Fast Attach 3 | 2 1 . Attach 12 | 5 6 1 Detach 1 | . . 1 Swap 14 | . 9 5 Drop 8 | . . 8 Fire 52 | 3 32 17 Melee . | . . . Ram . | . . . Kick . | . . . Crush . | . . . Escape Stasis . | . . . Rewire . | . . . Trap . | . . . Miscellaneous . | . . . Route ------- -11/Scrapyard -10/Materials -10/Subcaves History --------- Turn | Location | Event 5 | -11/Scrapyard | Discovered new exit (range 16) 366 | -11/Scrapyard | Entered Materials 372 | -10/Materials | Build established: Mutant 834 | -10/Materials | Discovered new exit (range 11) 916 | -10/Materials | Entered Subcaves 917 | -10/Subcaves | Approached by a straggling Scientist 1228 | -10/Subcaves | Ambushed by swarm of Subdwellers 1231 | -10/Subcaves | Ambushed by Subdwellers from Twisted Machinery 1231 | -10/Subcaves | Ambushed by Subdwellers from Twisted Machinery 1231 | -10/Subcaves | Ambushed by Subdwellers from Twisted Machinery 1246 | -10/Subcaves | Core integrity fell below 50% 1256 | -10/Subcaves | Core integrity fell below 20% 1257 | -10/Subcaves | Destroyed by N2-WGW(R) with Subdweller Laser Last Messages --------------- Destroyed Sub. Machine Gun. N2-WGW(R) emerges from the Twisted Machinery. HV Slug penetrates 02-O75(R). 02-O75(R) suffers critical hit (Destroy). HV Slug penetrates RQ-A0E(R). RQ-A0E(R) suffers critical hit (Destroy). RQ-A0E(R) destroyed. Neutrino Core destroyed. 02-O75(R) destroyed. HV Slug penetrates N2-WGW(R). QE-5FC(R) destroyed. Aluminum Leg destroyed. HV Slug penetrates Wall. Bore Cannon destroyed. Lgt. Assault Rifle destroyed. N2-WGW(R) affixes Scrap Shield Fragment to Scrap Shield. Myomer Leg destroyed. Acquired 1 matter. Acquired 25 matter. Map ----- +----------------------------------------------------+ | ?????????????????????????????????????????????????? | | ?????????????????????????????????????????????????? | | ?????????????????????????????????????????????????? | | ?????????????????????????????????????????????????? | | ?????????????????????????????????????????????????? | | ?????????????????????????????????????????????????? | | ?????????????????????????????????????????????????? | | ?????????????????????????????????????????????????? | | ?????????????????????????????????????????????????? | | ??????????????????????????##???###???????????????? | | ??????????????????????????# ?## ##?????????###??? | | ????????????????########??# ? #?????????# ##? | | ????????????????# ### ? #?????????# #? | | ???????????????? ? ###????????# ## | | ????????????????? ? ## ?# ##????????# # | | ????????????????? ??? # ??# ##??????## | | ?????????????????# ##### # #### #######*#] | | ????????????????## ? ## ## [ | | ????????????????# ##### ## ! | | ????????????????# ##""$## ### # # | | ????????????????? #< $""# ## ### # | | ??????????????????# ##<$$"# ### #?# # | | ?????????????????##RR #$"## ### ## ###" | | ?????????????????# #R ##% ###?# | | ?????????????????# # R & ##???##### #### | | ?????????????????# R*@!;#???????####??#### | | ?????????????????## %%""#????????????????## | | ??????????????????# R&"##?????????????????# | | ??????????????????#; ;##??????????????????# | | ??????????????????#### ##???????????????????## | | ?????????????????????# #????????????????????# | | ????????????????????? #????????????????????##[ | | ????????????????????## "#???????????????????##= | | ?????????????????????## ###???????????????????# = | | ??????????????????????####?????????????????????# | | ???????????????????????????????????????????????# | | ???????????????????????????????????????????????## | | ????????????????????????????????????????????????# | | ????????????????????????????????????????????????# | | ????????????????????????????????????????????????# | | ???????????????????????????????????????????????? | | ????????????????????????????????????????????????# | | ????????????????????????????????????????????????## | | ?????????????????????????????????????????????????? | | ?????????????????????????????????????????????????? | | ?????????????????????????????????????????????????? | | ?????????????????????????????????????????????????? | | ?????????????????????????????????????????????????? | | ?????????????????????????????????????????????????? | | ?????????????????????????????????????????????????? | +----------------------------------------------------+ Best States ------------- Heat Dissipation 25 Energy Generation 19 Energy Capacity 315 Matter Stores 331 Matter Capacity 400 Sight Range 16 Robot Scan Range 14 Terrain Scan Density 10 Armor Coverage 800 Evasion (%) 55 Item Schematics ----------------- None Robot Schematics ------------------ None Fabricated ------------ Nothing Repaired ---------- Nothing Alien Tech Used ----------------- None Achievements -------------- None Challenges ------------ None Game ------ Seed ScanSapperCompressor Manual? 0 Play Time 00:24:48 Cumulative 3.9 hours Start 2025.10.09 @ 17:53:45 End 2025.10.09 @ 20:17:00 Sessions 1 Manual Loads 0 Difficulty Rogue Special Mode None Game No. 4 Rogue 4 Adventurer 0 Explorer 0 Win Type - Total 0 Types 0/0/0/0/0/0/0/0/0/0 Lore% 2 Gallery% 7 Achievement% 10 Wizard Run 0 Options --------- Layout 1 ASCII 0 Keyboard 0 Movement Mouse Keybinds 0 Fullscreen 0 Font 20/SmallcapsGlow Map View 50x35 Zoom Use 0% Tactical HUD 0 Map Filters NONE Filters NONE Steam 1 RUN: 39c349a3-cb7d-4e70-9625-8ff2393bfe2e